bitfinex/quotes_SOLUSD_20240607
["timestamp","ask_amount","ask_price","bid_price","bid_amount"]
[1717732075330,2.1703,170.48,170.46,6.66]
[1717732076062,2.1703,170.48,170.45,6.66]
[1717732076236,2.1703,170.48,170.46,6.66]
[1717732077061,2.1703,170.48,170.45,6.66]
[1717732077235,2.1703,170.48,170.42,6.5133]
[1717732077441,2.1703,170.48,170.46,6.66]
[1717732078161,2.1703,170.48,170.45,6.66]
[1717732078463,2.1703,170.48,170.42,6.5133]
[1717732078464,2.1703,170.48,170.46,6.66]
[1717732078666,2.1703,170.48,170.45,6.66]
[1717732079356,2.1703,170.48,170.46,6.66]
[1717732080033,2.1703,170.48,170.45,6.66]
[1717732080233,2.1703,170.48,170.46,6.66]
[1717732080639,2.1703,170.48,170.45,6.66]
[1717732081263,2.1703,170.48,170.46,6.66]
[1717732081640,2.1703,170.48,170.42,6.5133]
[1717732081641,2.1704,170.47,170.42,6.5133]
[1717732081836,2.1704,170.47,170.45,6.66]
[1717732082350,2.1704,170.47,170.46,6.66]
[1717732082559,2.1704,170.47,170.45,6.66]
[1717732082865,2.1704,170.48,170.45,6.66]
[1717732083238,2.1704,170.48,170.46,6.66]
[1717732085069,2.1704,170.48,170.45,6.66]
[1717732085265,2.1704,170.48,170.46,6.66]
[1717732087067,2.1704,170.48,170.45,6.66]
[1717732087273,2.1704,170.48,170.46,6.66]
[1717732087658,2.1704,170.48,170.45,6.66]
[1717732088363,2.1704,170.48,170.46,6.66]
[1717732088571,2.1702,170.49,170.46,6.66]
[1717732088865,2.1703,170.48,170.45,6.66]
[1717732089368,4.3398,170.52,170.47,6.66]
[1717732089570,2.1701,170.5,170.48,6.66]
[1717732089869,2.17,170.51,170.48,6.66]
[1717732090247,2.17,170.51,170.49,6.66]
[1717732090448,2.17,170.51,170.48,6.66]
[1717732090965,2.17,170.5,170.48,6.66]
[1717732091874,2.1702,170.49,170.46,6.66]
[1717732092047,2.1702,170.49,170.45,6.66]
[1717732092247,2.1702,170.49,170.46,6.66]
[1717732092448,2.1702,170.49,170.45,6.66]
[1717732093063,2.1702,170.49,170.44,6.66]
[1717732093265,2.1702,170.49,170.46,6.66]
[1717732093472,2.1702,170.49,170.45,6.66]
[1717732093771,2.1701,170.5,170.46,2.1705]
[1717732094649,2.1705,170.47,170.43,2.1708]
[1717732094851,2.1707,170.45,170.41,6.66]
[1717732095072,2.1708,170.44,170.4,2.1712]
[1717732095252,2.171,170.43,170.4,6.66]
[1717732095452,2.171,170.43,170.4,2.1713]
[1717732096270,2.171,170.43,170.4,8.8313]
[1717732096474,2.1709,170.44,170.4,2.1713]
[1717732096773,2.1709,170.44,170.41,2.1712]
[1717732097347,2.1709,170.44,170.41,8.8312]
[1717732097565,2.1707,170.45,170.41,8.8312]
[1717732097968,2.1707,170.45,170.37,30.0]
[1717732097969,2.1706,170.46,170.42,6.66]
[1717732098187,2.1705,170.47,170.43,6.66]
[1717732098474,2.1705,170.47,170.44,6.66]
[1717732099276,2.1705,170.47,170.43,2.1708]
[1717732099468,2.1705,170.47,170.44,6.66]
[1717732099672,1.6705,170.47,170.44,6.66]
[1717732099978,2.1704,170.48,170.44,6.66]
[1717732100356,2.1704,170.48,170.42,10.8554]
[1717732100357,2.1704,170.48,170.45,6.66]
[1717732100661,2.1704,170.48,170.44,8.8307]
[1717732101065,2.1704,170.48,170.44,2.1707]
[1717732101470,2.1704,170.48,170.45,6.66]
[1717732101670,2.1704,170.48,170.44,2.1707]
[1717732101977,2.1704,170.48,170.44,8.8307]
[1717732102276,2.1704,170.48,170.44,2.1707]
[1717732102461,2.1704,170.48,170.44,8.8307]
[1717732103270,2.1704,170.48,170.44,2.1707]
[1717732103575,2.1704,170.48,170.45,6.66]
[1717732103975,2.1704,170.48,170.44,8.8307]
[1717732104168,2.1704,170.48,170.44,2.1707]
[1717732104555,2.1704,170.48,170.44,8.8307]
[1717732105275,2.1704,170.48,170.44,2.1707]
[1717732105479,2.1704,170.48,170.44,8.8307]
[1717732105872,24.3402,170.5,170.45,2.1707]
[1717732106063,2.1703,170.48,170.45,2.1707]
[1717732106260,2.1703,170.48,170.44,2.1707]
[1717732106462,2.1703,170.48,170.44,6.66]
[1717732106862,2.1703,170.48,170.44,8.8307]
[1717732107085,2.1703,170.48,170.44,2.1707]
[1717732107454,2.1703,170.48,170.44,6.66]
[1717732107664,2.1703,170.48,170.45,2.1707]
[1717732107981,2.1703,170.48,170.44,8.8307]
[1717732108186,2.1703,170.48,170.44,2.1707]
[1717732108394,2.1703,170.48,170.44,8.8307]
[1717732109181,2.1703,170.48,170.44,2.1707]
[1717732109687,2.1706,170.46,170.42,6.66]
[1717732110359,2.1705,170.47,170.43,2.1709]
[1717732111104,2.1705,170.47,170.43,6.66]
[1717732111387,2.1705,170.47,170.42,4.3421]
[1717732111595,2.1705,170.47,170.43,6.66]
[1717732111889,6.66,170.49,170.43,6.66]
[1717732111890,13.1386,170.49,170.43,6.66]
[1717732112062,20.0,170.48,170.43,6.66]
[1717732112279,2.1705,170.47,170.43,6.66]
[1717732112574,2.1705,170.47,170.43,8.8308]
[1717732112774,2.1705,170.47,170.44,2.1708]
[1717732113661,28.7982,170.48,170.44,2.1708]
[1717732113861,2.1703,170.49,170.45,2.1706]
[1717732114159,2.1703,170.49,170.46,2.1705]
[1717732114391,22.1701,170.5,170.47,6.66]
[1717732114593,22.1701,170.5,170.46,8.8305]
[1717732114974,2.1702,170.49,170.46,8.8305]
[1717732115161,2.1702,170.49,170.46,6.66]
[1717732115480,20.0,170.5,170.46,6.66]
[1717732115481,2.1703,170.48,170.46,6.66]
[1717732115992,2.1702,170.49,170.46,6.66]
[1717732116185,2.1702,170.49,170.45,6.66]
[1717732116364,2.1702,170.49,170.47,6.66]
[1717732116568,2.1702,170.49,170.46,6.66]
[1717732117292,2.1702,170.49,170.47,6.66]
[1717732117469,2.1702,170.49,170.46,6.66]
[1717732118269,2.1702,170.49,170.47,6.66]
[1717732118666,2.1702,170.49,170.46,6.66]
[1717732119178,2.1702,170.49,170.43,10.8548]
[1717732119494,2.1702,170.49,170.46,6.66]
[1717732120177,2.1702,170.49,170.45,6.66]
[1717732120371,2.1702,170.49,170.46,6.66]
[1717732121101,2.1702,170.49,170.45,6.66]
[1717732121267,2.1702,170.49,170.43,10.8548]
[1717732121468,2.1702,170.49,170.46,6.66]
[1717732121680,2.1703,170.48,170.46,6.66]
[1717732122067,2.1703,170.48,170.45,8.8306]
[1717732122269,2.1703,170.48,170.45,2.1706]
[1717732122592,2.1702,170.49,170.46,6.66]
[1717732123168,2.1702,170.49,170.45,6.66]
[1717732123483,2.1702,170.49,170.46,6.66]
[1717732124081,2.1702,170.49,170.45,6.66]
[1717732124276,2.1702,170.49,170.43,10.8548]
[1717732124593,2.1702,170.49,170.46,6.66]
[1717732125101,2.1702,170.49,170.45,6.66]
[1717732125390,2.1702,170.49,170.46,6.66]
[1717732126171,2.1702,170.49,170.45,6.66]
[1717732126394,2.1702,170.49,170.46,6.66]
[1717732127191,2.1702,170.49,170.45,6.66]
[1717732127373,2.1702,170.49,170.46,6.66]
[1717732128199,2.17,170.51,170.47,8.8303]
[1717732128492,2.17,170.51,170.47,2.1703]
[1717732128791,2.17,170.51,170.48,6.66]
[1717732129197,2.17,170.51,170.47,8.8303]
[1717732129395,2.17,170.5,170.49,6.66]
[1717732129571,2.17,170.5,170.48,6.66]
[1717732130205,2.17,170.5,170.47,8.8303]
[1717732130405,2.17,170.5,170.48,6.66]
[1717732131080,2.17,170.51,170.47,8.8303]
[1717732131274,2.17,170.51,170.49,6.66]
[1717732131484,2.17,170.51,170.48,6.66]
[1717732132093,2.1699,170.52,170.49,6.66]
[1717732132302,2.1699,170.52,170.5,6.66]
[1717732132498,2.1699,170.52,170.49,6.66]
[1717732133079,2.1699,170.52,170.48,10.00273671]
[1717732133275,2.1699,170.52,170.48,3.34273671]
[1717732133486,2.1699,170.52,170.5,6.66]
[1717732134085,2.1699,170.52,170.49,6.66]
[1717732134290,2.1699,170.52,170.49,1.17239916]
[1717732134495,2.1699,170.52,170.5,6.66]
[1717732135099,2.1699,170.52,170.49,6.66]
[1717732135305,2.1699,170.52,170.49,1.17226161]
[1717732135505,2.1698,170.52,170.5,6.66]
[1717732137113,2.1698,170.52,170.49,7.83226161]
[1717732137278,2.1698,170.52,170.5,6.66]
[1717732138179,2.1698,170.52,170.49,7.83226161]
[1717732138712,2.1698,170.52,170.49,6.66]
[1717732140092,2.1698,170.52,170.48,8.8302]
[1717732140409,2.1698,170.52,170.49,6.66]
[1717732140608,2.1698,170.52,170.48,8.8302]
[1717732141413,2.1697,170.53,170.5,6.66]
[1717732141592,2.1697,170.53,170.49,10.00178058]
[1717732141792,2.1697,170.53,170.49,8.83]
[1717732142313,2.1697,170.53,170.5,6.66]
[1717732143090,2.1697,170.53,170.49,8.83]
[1717732143290,2.1697,170.53,170.51,6.66]
[1717732143490,2.1697,170.53,170.49,2.17]
[1717732143789,2.1697,170.53,170.5,6.66]
[1717732144298,2.1697,170.53,170.51,6.66]
[1717732144621,2.1697,170.53,170.5,6.66]
[1717732145128,2.1697,170.53,170.49,8.83]
[1717732145417,2.1697,170.53,170.5,6.66]
[1717732146285,2.1697,170.53,170.51,6.66]
[1717732146492,2.1697,170.53,170.5,6.66]
[1717732147187,2.1697,170.53,170.49,8.83]
[1717732147383,2.1697,170.53,170.5,6.66]
[1717732148291,2.1697,170.53,170.51,6.66]
[1717732149119,2.1697,170.53,170.5,6.66]
[1717732149293,2.1697,170.53,170.51,6.66]
[1717732150110,2.1697,170.53,170.5,6.66]
[1717732150320,2.1697,170.53,170.51,6.66]
[1717732150618,2.25846897,170.53,170.51,6.66]
[1717732151225,2.25846897,170.53,170.5,6.66]
[1717732151399,2.25846897,170.53,170.51,6.66]
[1717732152130,2.25846897,170.53,170.5,6.66]
[1717732152310,2.25846897,170.53,170.51,6.66]
[1717732154132,2.25846897,170.53,170.5,6.66]
[1717732154434,2.25846897,170.53,170.51,6.66]
[1717732155234,2.25846897,170.53,170.5,6.66]
[1717732155534,2.25846897,170.53,170.51,6.66]
[1717732156233,2.25846897,170.53,170.5,6.66]
[1717732156529,2.25846897,170.53,170.51,6.66]
[1717732156727,2.25846897,170.53,170.5,6.66]
[1717732157436,2.25846897,170.53,170.51,6.66]
[1717732158134,2.25846897,170.53,170.5,6.66]
[1717732158313,2.25846897,170.53,170.52,6.66]
[1717732158513,2.25846897,170.53,170.51,6.66]
[1717732158715,0.08876897,170.53,170.51,6.66]
[1717732158933,0.08876897,170.53,170.52,6.66]
[1717732159119,0.08876897,170.53,170.5,2.17]
[1717732159516,0.08876897,170.53,170.52,6.66]
[1717732159714,0.08876897,170.53,170.51,6.66]
[1717732160312,0.08876897,170.53,170.52,6.66]
[1717732161144,0.08876897,170.53,170.5,2.17]
[1717732161837,0.08876897,170.53,170.51,6.66]
[1717732162447,0.08876897,170.53,170.52,6.66]
[1717732163129,0.08876897,170.53,170.51,6.66]
[1717732163329,0.08876897,170.53,170.52,6.66]
[1717732164156,0.08876897,170.53,170.5,2.17]
[1717732164451,0.08876897,170.53,170.52,6.66]
[1717732165129,0.08876897,170.53,170.51,6.66]
[1717732165328,0.08876897,170.53,170.52,6.66]
[1717732166123,0.08876897,170.53,170.5,2.17]
[1717732166326,0.08876897,170.53,170.52,6.66]
[1717732166540,0.08876897,170.53,170.5,2.17]
[1717732166842,0.08876897,170.53,170.51,6.66]
[1717732167148,0.08876897,170.53,170.51,8.8299]
[1717732167334,0.08876897,170.53,170.52,6.66]
[1717732168223,0.08876897,170.53,170.51,8.8299]
[1717732168426,0.08876897,170.53,170.52,6.66]
[1717732169224,0.08876897,170.53,170.51,8.8299]
[1717732169532,0.08876897,170.53,170.52,6.66]
[1717732170138,0.08876897,170.53,170.51,2.1699]
[1717732170650,0.08876897,170.53,170.52,6.66]
[1717732171446,0.08876897,170.53,170.52,8.8298]
[1717732172930,0.08876897,170.53,170.52,19.6789]
[1717732173523,0.08876897,170.53,170.52,43.1694]
[1717732185077,0.08876897,170.53,170.52,32.1698]
[1717732185271,0.08876897,170.53,170.52,6.66]
[1717732186259,0.08876897,170.53,170.51,2.1699]
[1717732186456,0.08876897,170.53,170.51,8.8299]
[1717732186639,0.08876897,170.53,170.51,6.66]
[1717732187148,0.08876897,170.53,170.5,6.66]
[1717732187337,0.08876897,170.53,170.52,6.66]
[1717732187538,0.08876897,170.53,170.51,6.66]
[1717732188238,0.08876897,170.53,170.5,6.66]
[1717732188443,0.08876897,170.53,170.51,6.66]
[1717732189265,0.08876897,170.53,170.49,6.5105]
[1717732189740,0.08876897,170.53,170.51,6.66]
[1717732189934,0.08876897,170.53,170.49,6.5105]
[1717732190148,0.08876897,170.53,170.5,6.66]
[1717732190346,0.08876897,170.53,170.52,6.66]
[1717732190556,0.08876897,170.53,170.51,6.66]
[1717732191067,0.08876897,170.53,170.52,8.8298]
[1717732191261,0.08876897,170.53,170.52,2.1698]
[1717732191458,0.08876897,170.53,170.52,8.8298]
[1717732193169,0.08876897,170.53,170.52,2.1698]
[1717732193376,0.08876897,170.53,170.52,8.8298]
[1717732194374,0.08876897,170.53,170.52,2.1698]
[1717732194578,0.08876897,170.53,170.52,8.8298]
[1717732195247,0.08876897,170.53,170.52,2.1698]
[1717732195452,0.08876897,170.53,170.52,8.8298]
[1717732196168,0.08876897,170.53,170.52,2.1698]
[1717732196369,0.08876897,170.53,170.52,8.8298]
[1717732198266,0.08876897,170.53,170.52,2.1698]
[1717732198468,0.08876897,170.53,170.52,8.8298]
[1717732199153,0.08876897,170.53,170.52,2.1698]
[1717732199358,0.08876897,170.53,170.51,8.8298]
[1717732201962,0.08876897,170.53,170.51,6.66]
[1717732202363,0.08876897,170.53,170.52,6.66]
[1717732202661,0.08876897,170.53,170.51,6.66]
[1717732204061,0.08876897,170.53,170.52,6.66]
[1717732204263,0.08876897,170.53,170.52,8.8298]
[1717732215391,0.08876897,170.53,170.52,2.1698]
[1717732220775,0.08876897,170.53,170.52,13.1694]
[1717732221174,0.08876897,170.53,170.52,20.1529]
[1717732222896,23.25911762,170.66,170.61,2.1686]
[1717732223084,2.1681,170.65,170.6,6.66]
[1717732223284,8.8328,170.65,170.6,2.1687]
[1717732224179,15.4928,170.65,170.6,2.1687]
[1717732224385,2.1683,170.64,170.6,8.8287]
[1717732224922,2.1683,170.64,170.6,2.1687]
[1717732225275,15.4929,170.65,170.6,2.1687]
[1717732225501,8.8329,170.65,170.6,8.8287]
[1717732225883,8.8329,170.65,170.6,2.1687]
[1717732226076,15.4929,170.65,170.6,8.8287]
[1717732226282,15.4929,170.65,170.6,2.1687]
[1717732226478,21.5387,170.64,170.6,2.1687]
[1717732226682,21.5387,170.64,170.59,8.8288]
[1717732226683,23.707,170.64,170.59,8.8288]
[1717732227094,15.2669,170.63,170.58,2.169]
[1717732227292,30.6352,170.63,170.58,2.169]
[1717732228110,28.4668,170.63,170.57,2.1691]
[1717732228311,8.766,170.62,170.57,8.8291]
[1717732229215,15.426,170.62,170.57,2.1691]
[1717732229428,8.766,170.62,170.58,6.66]
[1717732229602,8.766,170.62,170.57,8.8291]
[1717732230506,8.766,170.62,170.58,6.66]
[1717732230705,8.766,170.62,170.58,2.169]
[1717732230886,17.5368,170.63,170.58,2.169]
[1717732231083,2.1685,170.63,170.58,6.66]
[1717732231287,2.1685,170.63,170.59,6.66]
[1717732231990,2.1685,170.63,170.58,6.66]
[1717732232405,22.1685,170.63,170.59,6.66]
[1717732232626,2.1685,170.63,170.58,6.66]
[1717732232782,22.1685,170.63,170.58,6.66]
[1717732233199,2.1685,170.62,170.58,6.66]
[1717732233398,2.1685,170.62,170.59,6.66]
[1717732233702,2.1684,170.63,170.59,8.8288]
[1717732234403,2.1684,170.63,170.59,2.1688]
[1717732234613,2.1684,170.63,170.59,8.8288]
[1717732235181,2.1684,170.63,170.59,2.1688]
[1717732235391,2.1685,170.62,170.59,6.66]
[1717732235596,2.1685,170.62,170.58,8.829]
[1717732237200,2.1685,170.63,170.58,8.829]
[1717732237387,2.1685,170.63,170.59,6.66]
[1717732238210,2.1685,170.63,170.58,6.66]
[1717732238420,2.1685,170.63,170.59,6.66]
[1717732238593,2.1685,170.63,170.58,6.66]
[1717732238794,2.1685,170.62,170.58,6.66]
[1717732239213,2.1685,170.62,170.57,6.66]
[1717732239409,2.1685,170.62,170.59,6.66]
[1717732240213,2.1685,170.62,170.58,2.169]
[1717732240398,2.1685,170.62,170.58,8.829]
[1717732241214,2.1685,170.62,170.58,2.169]
[1717732241427,2.1685,170.62,170.59,6.66]
[1717732241717,2.1685,170.62,170.58,8.829]
[1717732242206,2.1685,170.62,170.58,2.169]
[1717732242415,2.1685,170.62,170.59,6.66]
[1717732242715,2.1685,170.62,170.58,8.829]
[1717732243093,2.1688,170.6,170.57,2.1691]
[1717732243297,2.1688,170.6,170.57,6.66]
[1717732244119,2.1687,170.61,170.57,6.66]
[1717732244309,2.1687,170.61,170.57,8.8291]
[1717732244512,2.1687,170.61,170.58,6.66]
[1717732244718,2.1687,170.61,170.58,2.169]
[1717732244914,2.1686,170.62,170.59,6.66]
[1717732246189,2.1686,170.62,170.58,8.829]
[1717732246497,2.1685,170.63,170.59,8.8289]
[1717732247427,2.1685,170.63,170.6,6.66]
[1717732247730,2.1685,170.63,170.59,8.8289]
[1717732248226,2.1685,170.63,170.59,2.1689]
[1717732248421,2.1685,170.63,170.6,6.66]
[1717732248598,2.1685,170.63,170.59,8.8289]
[1717732249516,2.1685,170.63,170.6,6.66]
[1717732250201,2.1685,170.63,170.59,8.8289]
[1717732250510,2.1685,170.63,170.6,6.66]
[1717732251212,2.1685,170.63,170.59,8.8289]
[1717732251411,2.1685,170.63,170.6,6.66]
[1717732251614,2.1685,170.63,170.59,8.8289]
[1717732252530,1.6685,170.63,170.6,6.66]
[1717732253228,1.6685,170.63,170.59,6.66]
[1717732253521,1.6685,170.63,170.57,4.3382]
[1717732253522,1.6685,170.63,170.6,6.66]
[1717732253725,1.6685,170.63,170.59,6.66]
[1717732254407,1.6685,170.63,170.6,6.66]
[1717732254816,2.1683,170.64,170.6,8.8287]
[1717732255221,2.1683,170.64,170.6,2.1687]
[1717732255520,2.1683,170.64,170.61,6.66]
[1717732255720,2.1683,170.64,170.6,6.66]
[1717732255930,2.1683,170.64,170.6,8.8287]
[1717732256446,2.1683,170.64,170.61,6.66]
[1717732257240,2.1683,170.64,170.6,2.1687]
[1717732257446,2.1684,170.63,170.6,8.8287]
[1717732257738,2.1684,170.63,170.6,6.66]
[1717732257934,2.1684,170.63,170.59,2.1688]
[1717732258141,2.1684,170.63,170.59,8.8288]
[1717732259233,2.1684,170.63,170.59,2.1688]
[1717732259434,2.1684,170.63,170.6,6.66]
[1717732259737,2.1684,170.63,170.6,2.1688]
[1717732260037,2.1684,170.63,170.59,2.1688]
[1717732260244,8.8284,170.63,170.6,2.1688]
[1717732260412,2.1684,170.63,170.6,2.1688]
[1717732260613,2.1684,170.63,170.59,2.1688]
[1717732261638,2.1684,170.63,170.59,8.8288]
[1717732262021,2.1684,170.63,170.59,2.1688]
[1717732262419,2.1684,170.63,170.59,8.8288]
[1717732262619,2.1684,170.63,170.59,2.1688]
[1717732263439,2.1684,170.63,170.59,8.8288]
[1717732263638,2.1684,170.63,170.59,2.1688]
[1717732263937,2.1684,170.63,170.6,2.1688]
[1717732265430,6.66,170.64,170.6,2.1688]
[1717732265431,8.2416,170.64,170.6,2.1688]
[1717732265642,2.1684,170.63,170.6,2.1688]
[1717732265938,2.1686,170.62,170.56,4.3386]
[1717732266240,2.1686,170.62,170.56,10.9986]
[1717732266413,2.1685,170.63,170.59,2.1689]
[1717732269623,8.3894,170.62,170.59,2.1689]
[1717732270952,18.4838,170.63,170.57,10.9983]
[1717732271121,2.1684,170.63,170.57,10.9983]
[1717732271519,2.1684,170.63,170.58,6.66]
[1717732272332,2.1684,170.63,170.57,10.9983]
[1717732272516,2.1684,170.63,170.58,6.66]
[1717732273521,2.1684,170.63,170.59,6.66]
[1717732273817,2.1684,170.63,170.58,6.66]
[1717732274249,8.8284,170.63,170.57,10.9983]
[1717732274543,2.1684,170.63,170.58,6.66]
[1717732275852,2.1685,170.62,170.59,2.1688]
[1717732276055,10.9966,170.64,170.59,2.1688]
[1717732276256,8.8285,170.63,170.59,2.1688]
[1717732276426,2.1685,170.63,170.59,8.8288]
[1717732276627,2.1685,170.63,170.59,2.1688]
[1717732277431,2.1685,170.63,170.59,8.8288]
[1717732277747,2.1685,170.63,170.59,2.1688]
[1717732278234,8.8285,170.63,170.59,2.1688]
[1717732278440,2.1685,170.63,170.59,8.8288]
[1717732278624,2.1685,170.63,170.59,2.1688]
[1717732279534,2.1685,170.63,170.59,8.8288]
[1717732279733,2.1685,170.63,170.59,2.1688]
[1717732280849,2.1685,170.62,170.59,2.1688]
[1717732281231,2.1687,170.61,170.57,2.1691]
[1717732281455,8.3006,170.61,170.57,2.1691]
[1717732281654,8.3006,170.61,170.58,2.169]
[1717732282026,2.1689,170.59,170.56,2.1692]
[1717732282324,2.1689,170.59,170.54,10.999]
[1717732282522,2.1689,170.59,170.55,6.66]
[1717732282736,2.1689,170.59,170.54,10.999]
[1717732282944,2.1689,170.59,170.55,2.1693]
[1717732283330,2.1689,170.59,170.56,2.1693]
[1717732284125,8.8288,170.6,170.54,17.5076]
[1717732284341,2.1688,170.6,170.56,2.1692]
[1717732285224,2.1689,170.59,170.56,2.1692]
[1717732285426,2.1689,170.59,170.56,8.8292]
[1717732285752,2.1689,170.59,170.56,2.1692]
[1717732286526,2.1689,170.59,170.56,8.8292]
[1717732286834,2.1689,170.59,170.56,2.1692]
[1717732287551,2.1689,170.59,170.56,8.8292]
[1717732287750,2.1689,170.59,170.56,2.1692]
[1717732288542,2.1689,170.59,170.56,8.8292]
[1717732288750,2.1689,170.59,170.56,2.1692]
[1717732289554,2.1689,170.59,170.56,8.8292]
[1717732289735,2.1689,170.59,170.56,2.1692]
[1717732290529,2.1689,170.6,170.56,2.1692]
[1717732291960,2.1689,170.59,170.56,2.1692]
[1717732292540,2.1688,170.6,170.56,8.8292]
[1717732292757,2.1688,170.6,170.56,2.1692]
[1717732293262,8.8288,170.6,170.56,2.1692]
[1717732293559,2.1689,170.59,170.56,2.1692]
[1717732293738,2.1688,170.6,170.56,2.1692]
[1717732294528,2.1688,170.6,170.56,8.8292]
[1717732294747,2.1688,170.6,170.56,2.1692]
[1717732295256,8.8288,170.6,170.56,2.1692]
[1717732295440,2.1688,170.6,170.56,8.8292]
[1717732295639,2.1688,170.6,170.56,2.1692]
[1717732296958,2.1689,170.59,170.56,2.1692]
[1717732297545,2.1688,170.6,170.56,2.1692]
[1717732298242,8.8288,170.6,170.56,2.1692]
[1717732298446,2.1689,170.59,170.56,2.1692]
[1717732300368,6.66,170.6,170.54,6.66]
[1717732300669,2.1691,170.58,170.52,4.3396]
[1717732300839,2.1691,170.58,170.55,2.1694]
[1717732301659,2.1689,170.59,170.55,2.1694]
[1717732301857,2.169,170.58,170.54,2.1695]
[1717732303149,2.1692,170.57,170.54,2.1695]
[1717732303350,2.1692,170.57,170.53,2.1696]
[1717732303547,2.1693,170.56,170.53,2.1696]
[1717732304380,8.8293,170.56,170.53,2.1696]
[1717732304558,2.1693,170.56,170.53,2.1696]
[1717732305367,8.8292,170.57,170.53,2.1696]
[1717732305579,2.1692,170.57,170.53,2.1696]
[1717732307297,8.8292,170.57,170.53,2.1696]
[1717732307481,2.1692,170.57,170.53,2.1696]
[1717732310284,8.8292,170.57,170.53,2.1696]
[1717732310474,2.1692,170.57,170.53,2.1696]
[1717732311583,2.1693,170.56,170.53,2.1696]
[1717732314383,2.1692,170.57,170.53,2.1696]
[1717732314570,2.1692,170.57,170.53,8.8296]
[1717732314989,2.1692,170.57,170.53,2.1696]
[1717732315207,2.1693,170.56,170.53,2.1696]
[1717732315490,2.1692,170.57,170.53,6.66]
[1717732315691,2.1692,170.57,170.52,6.66]
[1717732316474,2.1692,170.57,170.53,6.66]
[1717732316676,2.1692,170.57,170.52,6.66]
[1717732317491,2.1692,170.57,170.53,6.66]
[1717732317692,2.1692,170.57,170.51,10.8496]
[1717732317889,2.1692,170.57,170.53,6.66]
[1717732319189,2.1692,170.57,170.52,6.66]
[1717732319409,2.1693,170.56,170.53,6.66]
[1717732320603,2.1693,170.56,170.53,2.1696]
[1717732321472,2.1693,170.56,170.52,8.8297]
[1717732322374,2.1694,170.55,170.52,2.1697]
[1717732323101,2.1694,170.56,170.52,2.1697]
[1717732323307,2.1694,170.56,170.53,2.1697]
[1717732323489,2.1694,170.56,170.52,2.1697]
[1717732324405,2.1695,170.55,170.52,2.1697]
[1717732325777,2.1694,170.56,170.52,2.1697]
[1717732326408,2.1694,170.56,170.52,8.8297]
[1717732326605,2.1694,170.56,170.53,2.1696]
[1717732328009,2.1694,170.56,170.52,2.1697]
[1717732328386,2.1694,170.56,170.52,8.8297]
[1717732328593,10.9986,170.56,170.51,2.1699]
[1717732328794,2.1693,170.56,170.51,10.9998]
[1717732328997,2.1693,170.56,170.53,2.1696]
[1717732330998,2.1693,170.56,170.52,8.8297]
[1717732331298,2.1694,170.56,170.52,2.1697]
[1717732331611,2.1694,170.55,170.52,2.1697]
[1717732332410,2.1694,170.55,170.52,8.8297]
[1717732332728,2.1695,170.55,170.51,2.1699]
[1717732333421,2.1695,170.55,170.51,8.8299]
[1717732333595,2.1695,170.55,170.51,2.1699]